[Event "*** Titled Tuesday Blitz"]
[Site "Chess.com"]
[Date "2019.04.02"]
[Round "2"]
[White "Lion_DL"]
[Black "Rakesh"]
[Result "1/2-1/2"]
[WhiteElo "2457"]
[BlackElo "2290"]
[TimeControl "180+2"]
[EndTime "14:21:24 PDT"]
[Termination "Game drawn by agreement"]

1. e4 {[%clk 0:03:01.6]} 1... c5 {[%clk 0:03:01.5]} 2. Nf3 {[%clk 0:03:02.1]}
2... e6 {[%clk 0:03:00.9]} 3. d3 {[%clk 0:03:02.7]} 3... Nc6 {[%clk 0:02:59.3]}
4. g3 {[%clk 0:03:03.5]} 4... d5 {[%clk 0:03:00.1]} 5. Qe2 {[%clk 0:03:02.1]}
5... dxe4 {[%clk 0:03:01]} 6. dxe4 {[%clk 0:03:03.1]} 6... e5 {[%clk 0:03:01.8]}
7. c3 {[%clk 0:03:02.3]} 7... Nf6 {[%clk 0:02:59.3]} 8. Bg2 {[%clk 0:03:01.2]}
8... Qc7 {[%clk 0:03:00.3]} 9. O-O {[%clk 0:03:01.7]} 9... Bg4 {[%clk 0:03:01]}
10. h3 {[%clk 0:03:02.1]} 10... Bh5 {[%clk 0:03:01.8]} 11. Na3 {[%clk
0:02:57.7]} 11... Bg6 {[%clk 0:03:02.1]} 12. Nh4 {[%clk 0:02:55.2]} 12... Be7
{[%clk 0:02:54.9]} 13. Bg5 {[%clk 0:02:48.1]} 13... O-O {[%clk 0:02:37.9]} 14.
Nf5 {[%clk 0:02:37.7]} 14... Rad8 {[%clk 0:02:18.7]} 15. Rad1 {[%clk 0:02:22.9]}
15... a6 {[%clk 0:01:59.6]} 16. Nc4 {[%clk 0:02:16]} 16... b5 {[%clk 0:01:48.7]}
17. Nce3 {[%clk 0:02:15.8]} 17... Rfe8 {[%clk 0:01:10.6]} 18. Nxe7+ {[%clk
0:02:11.5]} 18... Nxe7 {[%clk 0:01:09.9]} 19. Bxf6 {[%clk 0:02:11.9]} 19... gxf6
{[%clk 0:01:11.8]} 20. h4 {[%clk 0:02:07]} 20... h5 {[%clk 0:01:09.2]} 21. Nd5
{[%clk 0:01:59.9]} 21... Nxd5 {[%clk 0:01:07.9]} 22. exd5 {[%clk 0:02:01.4]}
22... f5 {[%clk 0:01:08.4]} 23. Bf3 {[%clk 0:02:00.1]} 23... e4 {[%clk
0:01:02.9]} 24. Bxh5 {[%clk 0:02:00.8]} 24... Qe5 {[%clk 0:01:00.8]} 25. Bxg6
{[%clk 0:01:56.1]} 25... fxg6 {[%clk 0:01:02.7]} 26. c4 {[%clk 0:01:57.6]} 26...
bxc4 {[%clk 0:00:58.2]} 27. Qxc4 {[%clk 0:01:58.2]} 27... f4 {[%clk 0:00:58.4]}
28. d6+ {[%clk 0:01:53.2]} 28... Kg7 {[%clk 0:00:52.2]} 29. Rd5 {[%clk
0:01:54.6]} 29... Qf6 {[%clk 0:00:51.4]} 30. Qxc5 {[%clk 0:01:53]} 30... f3
{[%clk 0:00:48.2]} 31. Qd4 {[%clk 0:01:45.5]} 31... Qxd4 {[%clk 0:00:29]} 32.
Rxd4 {[%clk 0:01:46.3]} 32... Re6 {[%clk 0:00:23.3]} 33. d7 {[%clk 0:01:46.7]}
33... Re7 {[%clk 0:00:23.1]} 34. Re1 {[%clk 0:01:48.2]} 34... Rdxd7 {[%clk
0:00:21.7]} 35. Rxd7 {[%clk 0:01:44.9]} 35... Rxd7 {[%clk 0:00:23.6]} 36. Rxe4
{[%clk 0:01:41.7]} 36... Rd1+ {[%clk 0:00:24.7]} 37. Kh2 {[%clk 0:01:42.2]}
37... Rd2 {[%clk 0:00:26.6]} 38. Kg1 {[%clk 0:01:38.2]} 38... Rd1+ {[%clk
0:00:25.7]} 39. Kh2 {[%clk 0:01:39.3]} 39... Rd2 {[%clk 0:00:27.6]} 40. g4
{[%clk 0:01:40.6]} 40... Rxf2+ {[%clk 0:00:27.3]} 41. Kg3 {[%clk 0:01:42]} 41...
Rxb2 {[%clk 0:00:28.8]} 42. Kxf3 {[%clk 0:01:41.8]} 42... Rxa2 {[%clk
0:00:29.2]} 43. Re6 {[%clk 0:01:41.7]} 43... Ra4 {[%clk 0:00:27.8]} 1/2-1/2

[Event "*** Titled Tuesday Blitz"]
[Site "Chess.com"]
[Date "2019.04.02"]
[Round "2"]
[White "scrapnel"]
[Black "Margency"]
[Result "0-1"]
[WhiteElo "2543"]
[BlackElo "2696"]
[TimeControl "180+2"]
[EndTime "14:21:31 PDT"]
[Termination "Margency won on time"]

1. Nf3 {[%clk 0:03:01.9]} 1... Nf6 {[%clk 0:03:00.6]} 2. c4 {[%clk 0:03:02.1]}
2... g6 {[%clk 0:03:01.5]} 3. Nc3 {[%clk 0:03:02.1]} 3... Bg7 {[%clk 0:03:02.5]}
4. e4 {[%clk 0:03:03.3]} 4... d6 {[%clk 0:03:03.9]} 5. d4 {[%clk 0:03:04.1]}
5... O-O {[%clk 0:03:05]} 6. Be2 {[%clk 0:03:05.3]} 6... e5 {[%clk 0:03:06]} 7.
Be3 {[%clk 0:03:02.5]} 7... Ng4 {[%clk 0:03:06.3]} 8. Bg5 {[%clk 0:03:02.9]}
8... f6 {[%clk 0:03:07.6]} 9. Bc1 {[%clk 0:02:58.6]} 9... exd4 {[%clk
0:03:07.2]} 10. Nxd4 {[%clk 0:02:59]} 10... f5 {[%clk 0:03:08.5]} 11. O-O {[%clk
0:02:42.7]} 11... Nc6 {[%clk 0:03:00.6]} 12. Nc2 {[%clk 0:02:16.3]} 12... Qh4
{[%clk 0:02:50]} 13. h3 {[%clk 0:02:14.2]} 13... Nf6 {[%clk 0:02:34.3]} 14. exf5
{[%clk 0:02:06.5]} 14... gxf5 {[%clk 0:02:28.4]} 15. f4 {[%clk 0:01:32.6]} 15...
Be6 {[%clk 0:02:16.8]} 16. Ne3 {[%clk 0:01:28.6]} 16... Rae8 {[%clk 0:02:07.5]}
17. Bf3 {[%clk 0:01:19.4]} 17... Kh8 {[%clk 0:02:05]} 18. Ncd5 {[%clk
0:01:14.4]} 18... Rf7 {[%clk 0:01:59.9]} 19. Bd2 {[%clk 0:01:00.8]} 19... Nd4
{[%clk 0:01:56.9]} 20. Bc3 {[%clk 0:01:01.2]} 20... Nxf3+ {[%clk 0:01:53.6]} 21.
Qxf3 {[%clk 0:01:01.3]} 21... Ne4 {[%clk 0:01:53.7]} 22. Be1 {[%clk 0:00:44.9]}
22... Qd8 {[%clk 0:01:46.6]} 23. Rd1 {[%clk 0:00:44.6]} 23... Bxb2 {[%clk
0:01:34.5]} 24. Kh2 {[%clk 0:00:31.3]} 24... b6 {[%clk 0:01:22.3]} 25. g4 {[%clk
0:00:23.7]} 25... Nc5 {[%clk 0:01:12.4]} 26. Rg1 {[%clk 0:00:16.2]} 26... fxg4
{[%clk 0:01:10]} 27. hxg4 {[%clk 0:00:16.3]} 27... c6 {[%clk 0:01:03.2]} 28. Nb4
{[%clk 0:00:12.2]} 28... Rxf4 {[%clk 0:01:00.7]} 29. Qxf4 {[%clk 0:00:09.7]}
29... Be5 {[%clk 0:01:01.9]} 30. Qxe5+ {[%clk 0:00:08.2]} 30... dxe5 {[%clk
0:01:02.9]} 31. Rxd8 {[%clk 0:00:07.1]} 31... Rxd8 {[%clk 0:01:04.3]} 32. Nxc6
{[%clk 0:00:06.8]} 32... Rd3 {[%clk 0:01:04.2]} 0-1

[Event "*** Titled Tuesday Blitz"]
[Site "Chess.com"]
[Date "2019.04.02"]
[Round "2"]
[White "NemtsevIgor"]
[Black "AsaHoffmann"]
[Result "1-0"]
[WhiteElo "2331"]
[BlackElo "2210"]
[TimeControl "180+2"]
[EndTime "14:21:45 PDT"]
[Termination "NemtsevIgor won by resignation"]

1. c3 {[%clk 0:03:01.9]} 1... Nf6 {[%clk 0:02:58.9]} 2. Qa4 {[%clk 0:03:02.1]}
2... Nc6 {[%clk 0:02:54.4]} 3. g4 {[%clk 0:03:02.7]} 3... d6 {[%clk 0:02:52.5]}
4. g5 {[%clk 0:03:03.3]} 4... Nd7 {[%clk 0:02:52.8]} 5. d3 {[%clk 0:03:02.6]}
5... g6 {[%clk 0:02:50.5]} 6. h4 {[%clk 0:03:02.8]} 6... Bg7 {[%clk 0:02:46.3]}
7. h5 {[%clk 0:03:03.6]} 7... e5 {[%clk 0:02:42.4]} 8. Bg2 {[%clk 0:02:58.5]}
8... Ne7 {[%clk 0:02:35.9]} 9. Nf3 {[%clk 0:02:43.2]} 9... c6 {[%clk 0:02:35.5]}
10. Nbd2 {[%clk 0:02:42.4]} 10... Nd5 {[%clk 0:02:32.6]} 11. Ne4 {[%clk
0:02:40.4]} 11... N7b6 {[%clk 0:02:30]} 12. Qc2 {[%clk 0:02:32.9]} 12... Bf5
{[%clk 0:02:26.9]} 13. Ng3 {[%clk 0:02:31.6]} 13... Bg4 {[%clk 0:02:21.7]} 14.
Rh4 {[%clk 0:02:21]} 14... Qd7 {[%clk 0:02:21]} 15. a4 {[%clk 0:02:19.9]} 15...
a5 {[%clk 0:02:20.7]} 16. Ne4 {[%clk 0:02:14.6]} 16... O-O-O {[%clk 0:02:05.5]}
17. Bd2 {[%clk 0:02:03.4]} 17... f5 {[%clk 0:02:04.8]} 18. gxf6 {[%clk
0:02:01.3]} 18... Nxf6 {[%clk 0:02:05.3]} 19. Neg5 {[%clk 0:01:51.1]} 19... h6
{[%clk 0:01:59.7]} 20. Rxg4 {[%clk 0:01:32.5]} 20... hxg5 {[%clk 0:01:58.4]} 21.
Rxg5 {[%clk 0:01:31.6]} 21... Nxh5 {[%clk 0:01:49.5]} 22. Rxg6 {[%clk
0:01:26.6]} 22... Nf4 {[%clk 0:01:44.4]} 23. Bxf4 {[%clk 0:01:26.7]} 23... exf4
{[%clk 0:01:45.1]} 24. Qb3 {[%clk 0:01:25.2]} 24... Kc7 {[%clk 0:01:43.7]} 25.
O-O-O {[%clk 0:01:20.8]} 25... Rde8 {[%clk 0:01:43.8]} 26. Re1 {[%clk
0:01:09.5]} 26... Re7 {[%clk 0:01:41.5]} 27. Ng5 {[%clk 0:01:07.2]} 27... Rhe8
{[%clk 0:01:38.2]} 28. Bh3 {[%clk 0:01:06.7]} 28... Qd8 {[%clk 0:01:31.1]} 29.
Ne6+ {[%clk 0:01:05.7]} 29... Rxe6 {[%clk 0:01:28.2]} 30. Rxe6 {[%clk
0:01:06.9]} 30... Rh8 {[%clk 0:01:22.3]} 31. Bg4 {[%clk 0:01:01.9]} 31... Qg5
{[%clk 0:01:22]} 32. f3 {[%clk 0:01:02.7]} 32... Nd5 {[%clk 0:01:17.8]} 33. Qc4
{[%clk 0:00:57.6]} 33... Ne3 {[%clk 0:01:13.3]} 34. Qe4 {[%clk 0:00:57.4]} 34...
Qc5 {[%clk 0:01:06.5]} 35. Re7+ {[%clk 0:00:54.5]} 35... Kb8 {[%clk 0:01:06.4]}
36. Rxg7 {[%clk 0:00:55.1]} 36... Nd5 {[%clk 0:00:56.6]} 37. Qd4 {[%clk
0:00:49.3]} 1-0

[Event "*** Titled Tuesday Blitz"]
[Site "Chess.com"]
[Date "2019.04.02"]
[Round "2"]
[White "Eltarolo"]
[Black "A-Fier"]
[Result "1/2-1/2"]
[WhiteElo "2424"]
[BlackElo "2764"]
[TimeControl "180+2"]
[EndTime "14:21:46 PDT"]
[Termination "Game drawn by repetition"]

1. e4 {[%clk 0:03:01.9]} 1... Nf6 {[%clk 0:02:54.2]} 2. e5 {[%clk 0:03:02.5]}
2... Nd5 {[%clk 0:02:54.5]} 3. d4 {[%clk 0:03:04.1]} 3... d6 {[%clk 0:02:55.2]}
4. c4 {[%clk 0:03:05.4]} 4... Nb6 {[%clk 0:02:55.7]} 5. exd6 {[%clk 0:03:07]}
5... cxd6 {[%clk 0:02:55.9]} 6. Nc3 {[%clk 0:03:07.5]} 6... g6 {[%clk 0:02:55]}
7. Be3 {[%clk 0:03:08.5]} 7... Bg7 {[%clk 0:02:55.9]} 8. Rc1 {[%clk 0:03:08.2]}
8... O-O {[%clk 0:02:56]} 9. b3 {[%clk 0:03:09.1]} 9... e5 {[%clk 0:02:56.1]}
10. dxe5 {[%clk 0:02:52.5]} 10... dxe5 {[%clk 0:02:57.8]} 11. Qxd8 {[%clk
0:02:50.3]} 11... Rxd8 {[%clk 0:02:59.4]} 12. Nb5 {[%clk 0:02:40.8]} 12... Nc6
{[%clk 0:02:56.4]} 13. Nxa7 {[%clk 0:02:17.6]} 13... Nd4 {[%clk 0:02:39.4]} 14.
Nxc8 {[%clk 0:02:15]} 14... Rdxc8 {[%clk 0:02:37.6]} 15. a4 {[%clk 0:01:59.3]}
15... Nxb3 {[%clk 0:02:36.5]} 16. Rb1 {[%clk 0:01:57.2]} 16... Rxa4 {[%clk
0:02:16.8]} 17. Bxb6 {[%clk 0:01:53.4]} 17... Nd4 {[%clk 0:02:16.4]} 18. Bxd4
{[%clk 0:01:35.5]} 18... exd4 {[%clk 0:02:17.9]} 19. Bd3 {[%clk 0:01:19.8]}
19... Re8+ {[%clk 0:02:17.2]} 20. Ne2 {[%clk 0:01:20.2]} 20... Ra3 {[%clk
0:02:17.6]} 21. Rd1 {[%clk 0:00:54.6]} 21... h5 {[%clk 0:02:18.1]} 22. O-O
{[%clk 0:00:33.3]} 22... Rxd3 {[%clk 0:02:17.8]} 23. Rxd3 {[%clk 0:00:34]} 23...
Rxe2 {[%clk 0:02:19.3]} 24. Rc1 {[%clk 0:00:23.1]} 24... b6 {[%clk 0:02:13.3]}
25. g3 {[%clk 0:00:22.3]} 25... Bf8 {[%clk 0:02:09.5]} 26. Rxd4 {[%clk
0:00:20.7]} 26... Bc5 {[%clk 0:02:10.1]} 27. Rf4 {[%clk 0:00:21.8]} 27... f5
{[%clk 0:02:10.8]} 28. h4 {[%clk 0:00:22.3]} 28... Kg7 {[%clk 0:02:11.7]} 29.
Kg2 {[%clk 0:00:22.4]} 29... Kf6 {[%clk 0:02:12.6]} 30. Rf3 {[%clk 0:00:23]}
30... Rd2 {[%clk 0:02:13.1]} 31. Rcc3 {[%clk 0:00:21.7]} 31... Ra2 {[%clk
0:02:12]} 32. Rc1 {[%clk 0:00:22.1]} 32... Rb2 {[%clk 0:02:12.4]} 33. Rcc3
{[%clk 0:00:20.3]} 33... Ke5 {[%clk 0:02:11.6]} 34. Rf4 {[%clk 0:00:16.1]} 34...
Rd2 {[%clk 0:02:08.5]} 35. Rc1 {[%clk 0:00:16.2]} 35... Kf6 {[%clk 0:02:09]} 36.
Kf1 {[%clk 0:00:16.5]} 36... Rb2 {[%clk 0:02:09.4]} 37. Re1 {[%clk 0:00:16.7]}
37... Rc2 {[%clk 0:02:09.3]} 38. Re2 {[%clk 0:00:17.8]} 38... Rc3 {[%clk
0:02:09.4]} 39. Kg2 {[%clk 0:00:18.7]} 39... Bd6 {[%clk 0:02:08.4]} 40. Rd4
{[%clk 0:00:19]} 40... Bc5 {[%clk 0:02:09.5]} 41. Rf4 {[%clk 0:00:20.2]} 41...
Bd6 {[%clk 0:02:10.3]} 42. Rd4 {[%clk 0:00:20.4]} 42... Bc5 {[%clk 0:02:11.2]}
43. Rf4 {[%clk 0:00:13.2]} 43... Bd6 {[%clk 0:02:11.7]} 44. Rd4 {[%clk 0:00:08]}
44... Bc5 {[%clk 0:02:12.6]} 45. Rf4 {[%clk 0:00:07.5]} 1/2-1/2

[Event "*** Titled Tuesday Blitz"]
[Site "Chess.com"]
[Date "2019.04.02"]
[Round "2"]
[White "MathiasWomacka"]
[Black "Vusatiuk_Vladimir"]
[Result "1-0"]
[WhiteElo "2248"]
[BlackElo "2161"]
[TimeControl "180+2"]
[EndTime "14:21:53 PDT"]
[Termination "MathiasWomacka won by resignation"]

1. e4 {[%clk 0:03:01.7]} 1... c5 {[%clk 0:02:59.5]} 2. Nf3 {[%clk 0:03:02.3]}
2... Nc6 {[%clk 0:03:00.4]} 3. d4 {[%clk 0:03:03.3]} 3... cxd4 {[%clk
0:03:02.3]} 4. Nxd4 {[%clk 0:03:04.8]} 4... e5 {[%clk 0:03:03.8]} 5. Nb5 {[%clk
0:03:04.6]} 5... d6 {[%clk 0:03:05]} 6. N1c3 {[%clk 0:03:04.6]} 6... a6 {[%clk
0:03:04.3]} 7. Na3 {[%clk 0:03:05.6]} 7... b5 {[%clk 0:03:05.1]} 8. Nd5 {[%clk
0:03:06.7]} 8... Nf6 {[%clk 0:03:06.6]} 9. Bg5 {[%clk 0:03:04.8]} 9... Be7
{[%clk 0:03:08.1]} 10. Bxf6 {[%clk 0:03:04.4]} 10... Bxf6 {[%clk 0:03:10]} 11.
c3 {[%clk 0:02:59.4]} 11... Bg5 {[%clk 0:03:10.3]} 12. Nc2 {[%clk 0:02:59.6]}
12... O-O {[%clk 0:03:10.5]} 13. a4 {[%clk 0:03:00]} 13... bxa4 {[%clk
0:03:12.4]} 14. Rxa4 {[%clk 0:03:01.7]} 14... a5 {[%clk 0:03:13.8]} 15. Bc4
{[%clk 0:03:02.4]} 15... Rb8 {[%clk 0:03:15.1]} 16. b3 {[%clk 0:03:03.1]} 16...
Kh8 {[%clk 0:03:16.7]} 17. Ra2 {[%clk 0:02:52.3]} 17... f5 {[%clk 0:03:07.4]}
18. exf5 {[%clk 0:02:49.8]} 18... Bxf5 {[%clk 0:03:08.2]} 19. Nce3 {[%clk
0:02:50.6]} 19... Be6 {[%clk 0:02:45.2]} 20. O-O {[%clk 0:02:49.1]} 20... Qd7
{[%clk 0:01:22.6]} 21. Qd3 {[%clk 0:02:27.3]} 21... Qf7 {[%clk 0:01:16.3]} 22.
Qe4 {[%clk 0:02:12]} 22... Bxe3 {[%clk 0:01:05.8]} 23. Nxe3 {[%clk 0:02:09.9]}
23... Bxc4 {[%clk 0:01:02.9]} 24. bxc4 {[%clk 0:02:07.8]} 24... Qe8 {[%clk
0:00:53.3]} 25. Rd1 {[%clk 0:02:06.3]} 25... Rf4 {[%clk 0:00:31.9]} 26. Qd5
{[%clk 0:01:53.3]} 26... Rf6 {[%clk 0:00:32.8]} 27. h3 {[%clk 0:01:46.3]} 27...
Ra8 {[%clk 0:00:24.9]} 28. c5 {[%clk 0:01:37.3]} 28... dxc5 {[%clk 0:00:23]} 29.
Qxc5 {[%clk 0:01:39.2]} 29... a4 {[%clk 0:00:22.1]} 30. Nd5 {[%clk 0:01:37.3]}
30... Rf7 {[%clk 0:00:18.9]} 31. Nb6 {[%clk 0:01:37.2]} 31... Rc8 {[%clk
0:00:18.3]} 32. Nxc8 {[%clk 0:01:35.9]} 32... Qxc8 {[%clk 0:00:18]} 33. Rxa4
{[%clk 0:01:36.2]} 33... Qe8 {[%clk 0:00:13.8]} 34. Ra6 {[%clk 0:01:28.3]} 34...
Ne7 {[%clk 0:00:12.9]} 35. Rad6 {[%clk 0:01:21.6]} 35... Ng8 {[%clk 0:00:09.4]}
36. Rd8 {[%clk 0:01:21.4]} 36... Qe6 {[%clk 0:00:11]} 37. Rxg8+ {[%clk 0:01:17]}
37... Kxg8 {[%clk 0:00:09.7]} 38. Rd8+ {[%clk 0:01:18.2]} 1-0

[Event "*** Titled Tuesday Blitz"]
[Site "Chess.com"]
[Date "2019.04.02"]
[Round "2"]
[White "ZeroRealtorFade"]
[Black "TheBigBadChessDad"]
[Result "0-1"]
[WhiteElo "2270"]
[BlackElo "2201"]
[TimeControl "180+2"]
[EndTime "14:21:56 PDT"]
[Termination "TheBigBadChessDad won on time"]

1. d4 {[%clk 0:02:59.8]} 1... Nf6 {[%clk 0:03:00.1]} 2. Bf4 {[%clk 0:03:00.7]}
2... c6 {[%clk 0:02:58.7]} 3. e3 {[%clk 0:03:01.9]} 3... Qb6 {[%clk 0:02:59.5]}
4. Qc1 {[%clk 0:03:01.1]} 4... d5 {[%clk 0:02:59.1]} 5. c3 {[%clk 0:03:01.5]}
5... Bf5 {[%clk 0:02:59.7]} 6. Nd2 {[%clk 0:03:02.1]} 6... e6 {[%clk 0:02:59.4]}
7. Ngf3 {[%clk 0:03:03.2]} 7... c5 {[%clk 0:02:58]} 8. Nh4 {[%clk 0:03:02.2]}
8... Bg6 {[%clk 0:02:56.6]} 9. Nxg6 {[%clk 0:03:02.6]} 9... hxg6 {[%clk
0:02:57.9]} 10. Be2 {[%clk 0:02:56]} 10... Nc6 {[%clk 0:02:58.8]} 11. O-O {[%clk
0:02:55.1]} 11... Rc8 {[%clk 0:02:58.9]} 12. Qb1 {[%clk 0:02:45.5]} 12... Qd8
{[%clk 0:02:56.8]} 13. Nf3 {[%clk 0:02:40.4]} 13... Bd6 {[%clk 0:02:53.5]} 14.
Bg3 {[%clk 0:02:13.8]} 14... Ne4 {[%clk 0:02:43.6]} 15. Bb5 {[%clk 0:02:00.8]}
15... Bxg3 {[%clk 0:02:26.2]} 16. hxg3 {[%clk 0:02:01.1]} 16... f5 {[%clk
0:02:24.4]} 17. dxc5 {[%clk 0:01:50.4]} 17... Qf6 {[%clk 0:02:16.8]} 18. Qd3
{[%clk 0:01:39.9]} 18... g5 {[%clk 0:02:17.6]} 19. Rfd1 {[%clk 0:00:27.6]} 19...
g4 {[%clk 0:02:17.2]} 20. Ne1 {[%clk 0:00:19.4]} 20... Rh1+ {[%clk 0:02:00.2]}
21. Kxh1 {[%clk 0:00:16.5]} 21... Nxf2+ {[%clk 0:02:01.8]} 22. Kg1 {[%clk
0:00:17.8]} 22... Nxd3 {[%clk 0:02:02.7]} 23. Nxd3 {[%clk 0:00:18.4]} 23... a6
{[%clk 0:01:57.8]} 24. Ba4 {[%clk 0:00:18.7]} 24... Ke7 {[%clk 0:01:49.7]} 25.
Bxc6 {[%clk 0:00:18.6]} 25... bxc6 {[%clk 0:01:47.2]} 26. Rac1 {[%clk
0:00:12.3]} 26... a5 {[%clk 0:01:47.5]} 27. b4 {[%clk 0:00:12.2]} 27... Ra8
{[%clk 0:01:44.3]} 28. a3 {[%clk 0:00:06]} 28... e5 {[%clk 0:01:42.1]} 29. Kf2
{[%clk 0:00:03.1]} 29... e4 {[%clk 0:01:43.1]} 30. Nf4 {[%clk 0:00:03.7]} 30...
g5 {[%clk 0:01:37.3]} 31. Ne2 {[%clk 0:00:04.7]} 31... axb4 {[%clk 0:01:36.6]}
32. axb4 {[%clk 0:00:06.6]} 32... Ra2 {[%clk 0:01:37.4]} 33. Ra1 {[%clk
0:00:04.8]} 33... Rxe2+ {[%clk 0:01:34.8]} 34. Kxe2 {[%clk 0:00:05.8]} 34...
Qxc3 {[%clk 0:01:36.2]} 35. Rab1 {[%clk 0:00:06.9]} 35... Ke6 {[%clk 0:01:33.8]}
36. Rdc1 {[%clk 0:00:07.7]} 36... Qe5 {[%clk 0:01:34.1]} 37. Kf2 {[%clk
0:00:08.3]} 37... f4 {[%clk 0:01:35.3]} 38. gxf4 {[%clk 0:00:09.4]} 38... gxf4
{[%clk 0:01:36.8]} 39. b5 {[%clk 0:00:10.6]} 39... fxe3+ {[%clk 0:01:33.2]} 40.
Kxe3 {[%clk 0:00:11.5]} 40... d4+ {[%clk 0:01:32.3]} 41. Kf2 {[%clk 0:00:11.4]}
41... Qf4+ {[%clk 0:01:33.3]} 42. Kg1 {[%clk 0:00:11.6]} 42... Qe3+ {[%clk
0:01:34.3]} 43. Kf1 {[%clk 0:00:03.9]} 43... g3 {[%clk 0:01:33]} 0-1

[Event "*** Titled Tuesday Blitz"]
[Site "Chess.com"]
[Date "2019.04.02"]
[Round "2"]
[White "Cayse"]
[Black "Hikaru"]
[Result "0-1"]
[WhiteElo "2605"]
[BlackElo "3186"]
[TimeControl "180+2"]
[EndTime "14:21:58 PDT"]
[Termination "Hikaru won on time"]

1. e4 {[%clk 0:03:01.9]} 1... g6 {[%clk 0:02:51.7]} 2. d4 {[%clk 0:03:01.9]}
2... Bg7 {[%clk 0:02:53.6]} 3. Nc3 {[%clk 0:03:02.6]} 3... a6 {[%clk 0:02:51.3]}
4. f4 {[%clk 0:02:56]} 4... c6 {[%clk 0:02:51.6]} 5. Nf3 {[%clk 0:02:56.5]} 5...
d5 {[%clk 0:02:53]} 6. e5 {[%clk 0:02:57.5]} 6... Bg4 {[%clk 0:02:54.4]} 7. Be3
{[%clk 0:02:54.4]} 7... h5 {[%clk 0:02:54.9]} 8. h3 {[%clk 0:02:55.1]} 8... Bxf3
{[%clk 0:02:55.8]} 9. Qxf3 {[%clk 0:02:56.6]} 9... e6 {[%clk 0:02:57.7]} 10. Bd3
{[%clk 0:02:50.4]} 10... h4 {[%clk 0:02:57.5]} 11. O-O {[%clk 0:02:48.4]} 11...
Ne7 {[%clk 0:02:46.3]} 12. Ne2 {[%clk 0:02:47.1]} 12... Nf5 {[%clk 0:02:46]} 13.
Bf2 {[%clk 0:02:48.1]} 13... Nd7 {[%clk 0:02:46.8]} 14. b3 {[%clk 0:02:48.5]}
14... Bf8 {[%clk 0:02:46.2]} 15. c4 {[%clk 0:02:42]} 15... Ba3 {[%clk
0:02:45.7]} 16. Kh1 {[%clk 0:02:35.1]} 16... Qe7 {[%clk 0:02:32.7]} 17. Rab1
{[%clk 0:02:28.1]} 17... Bb4 {[%clk 0:02:33.4]} 18. Ng1 {[%clk 0:01:59.3]} 18...
a5 {[%clk 0:02:26.8]} 19. Bxf5 {[%clk 0:01:54.9]} 19... gxf5 {[%clk 0:02:27.2]}
20. Qe2 {[%clk 0:01:50.9]} 20... Nf8 {[%clk 0:02:28]} 21. c5 {[%clk 0:01:45.1]}
21... Ng6 {[%clk 0:02:21.2]} 22. Be3 {[%clk 0:01:42.8]} 22... a4 {[%clk
0:02:21.5]} 23. bxa4 {[%clk 0:01:38.7]} 23... Ba5 {[%clk 0:02:23]} 24. Rb3
{[%clk 0:01:29.5]} 24... O-O {[%clk 0:02:17.8]} 25. Rfb1 {[%clk 0:01:23.7]}
25... Ra7 {[%clk 0:02:19]} 26. Nf3 {[%clk 0:01:21.1]} 26... Rfa8 {[%clk
0:02:18.6]} 27. Qb2 {[%clk 0:01:19.3]} 27... Bc7 {[%clk 0:02:17.1]} 28. Rxb7
{[%clk 0:00:53.7]} 28... Rxb7 {[%clk 0:02:19]} 29. Qxb7 {[%clk 0:00:54.7]} 29...
Rb8 {[%clk 0:02:20.2]} 30. Qxb8+ {[%clk 0:00:54.9]} 30... Bxb8 {[%clk
0:02:20.6]} 31. Rxb8+ {[%clk 0:00:56.8]} 31... Kg7 {[%clk 0:02:22.3]} 32. a3
{[%clk 0:00:53.1]} 32... Qa7 {[%clk 0:02:22.8]} 33. Rb4 {[%clk 0:00:53.6]} 33...
Qa6 {[%clk 0:02:24.1]} 34. Kg1 {[%clk 0:00:34.3]} 34... Qd3 {[%clk 0:02:22.2]}
35. Bd2 {[%clk 0:00:35.4]} 35... Qxa3 {[%clk 0:02:21.6]} 36. Rb7 {[%clk
0:00:22.8]} 36... Qxa4 {[%clk 0:02:19.7]} 37. Kh2 {[%clk 0:00:23.5]} 37... Qa2
{[%clk 0:02:15.8]} 38. Rc7 {[%clk 0:00:23]} 38... Qc2 {[%clk 0:02:11.5]} 39.
Rxc6 {[%clk 0:00:19.3]} 39... Qe4 {[%clk 0:02:12.5]} 40. Rc7 {[%clk 0:00:19.5]}
40... Nxf4 {[%clk 0:02:11.2]} 41. Rxf7+ {[%clk 0:00:20.3]} 41... Kg8 {[%clk
0:02:11.2]} 42. Ra7 {[%clk 0:00:19.1]} 42... Nxg2 {[%clk 0:02:09.7]} 43. Kxg2
{[%clk 0:00:13.3]} 43... Qe2+ {[%clk 0:02:10.2]} 44. Kg1 {[%clk 0:00:13.6]}
44... Qxf3 {[%clk 0:02:11.2]} 45. Be1 {[%clk 0:00:13.1]} 45... Qxh3 {[%clk
0:02:08.8]} 46. c6 {[%clk 0:00:13.9]} 46... Qg4+ {[%clk 0:02:06.3]} 47. Kf1
{[%clk 0:00:10.1]} 47... h3 {[%clk 0:02:06.4]} 48. Ra2 {[%clk 0:00:09.6]} 48...
Qxd4 {[%clk 0:02:01.9]} 49. Re2 {[%clk 0:00:09]} 49... Qc4 {[%clk 0:02:01.5]}
50. Bg3 {[%clk 0:00:08.1]} 50... f4 {[%clk 0:02:00.4]} 51. c7 {[%clk 0:00:03.8]}
51... fxg3 {[%clk 0:01:59.6]} 0-1